bitfinex-derivatives/quotes_SOLF0:USTF0_20251208
["timestamp","ask_amount","ask_price","bid_price","bid_amount"]
[1765180093381,63.33169455,135.65,135.64,3.16]
[1765180093681,63.33169455,135.65,135.63,13.776202]
[1765180093875,63.33169455,135.65,135.63,16.936202]
[1765180094383,0.05169455,135.65,135.64,16.936202]
[1765180094581,0.05169455,135.65,135.64,3.16]
[1765180095378,6.6322,135.71,135.65,3.16]
[1765180095686,63.26,135.7,135.68,9.18622812]
[1765180096585,63.30862177,135.7,135.68,9.24009016]
[1765180098287,69.94122177,135.7,135.68,9.24009016]
[1765180100793,72.34989783,135.7,135.68,9.24009016]
[1765180103296,69.94122177,135.7,135.68,9.24009016]
[1765180103590,2.40867606,135.69,135.68,0.05386204]
[1765180104887,65.66867606,135.69,135.68,0.05386204]
[1765180105086,65.66867606,135.69,135.68,9.24009016]
[1765180105286,65.66867606,135.69,135.68,0.05386204]
[1765180105788,63.26,135.69,135.68,0.05386204]
[1765180106594,0.04862177,135.7,135.68,0.05386204]
[1765180106789,63.24,135.69,135.68,9.24009016]
[1765180107686,0.04862177,135.7,135.68,12.60009016]
[1765180107885,63.24,135.69,135.68,9.24009016]
[1765180110101,0.04862177,135.7,135.69,3.36]
[1765180110394,0.04862177,135.7,135.69,12.54622812]
[1765180111186,0.04862177,135.7,135.69,3.36]
[1765180111393,0.04862177,135.7,135.69,12.52652874]
[1765180111795,2.40867606,135.73,135.7,3.36]
[1765180111991,63.24,135.74,135.72,3.36]
[1765180112891,63.29110307,135.74,135.72,3.41660331]
[1765180114000,63.29110307,135.74,135.72,0.05660331]
[1765180114197,63.29110307,135.74,135.72,3.41660331]
[1765180114899,63.29110307,135.74,135.72,12.58313205]
[1765180115297,63.29110307,135.74,135.72,3.41660331]
[1765180115696,63.29110307,135.74,135.72,12.58313205]
[1765180118301,63.29110307,135.74,135.72,3.41660331]
[1765180118705,63.29110307,135.74,135.72,0.05660331]
[1765180119389,63.29110307,135.74,135.73,3.36]
[1765180119589,63.29110307,135.74,135.72,3.41660331]
[1765180119791,63.29110307,135.74,135.72,12.58313205]
[1765180120290,63.29110307,135.74,135.72,3.41660331]
[1765180124003,0.05110307,135.74,135.72,14.99180811]
[1765180124207,0.05110307,135.74,135.73,3.36]
[1765180127912,0.05110307,135.74,135.73,3.35]
[1765180129403,0.05110307,135.74,135.72,0.05660331]
[1765180129602,2.45977913,135.74,135.72,0.05660331]
[1765180130809,2.45977913,135.74,135.72,3.40660331]
[1765180133808,2.45977913,135.74,135.72,0.05660331]
[1765180134015,9.09037913,135.74,135.72,0.05660331]
[1765180141922,63.22,135.73,135.72,0.05660331]
[1765180142719,63.22,135.73,135.68,9.16652874]
[1765180142922,2.40867606,135.7,135.68,9.16652874]
[1765180143122,63.22,135.69,135.68,9.16652874]
[1765180143321,63.22,135.69,135.68,8.96369647]
[1765180143527,63.22,135.69,135.66,3.29]
[1765180143715,2.40867606,135.68,135.66,3.29]
[1765180143915,2.40867606,135.68,135.66,3.33920858]
[1765180145027,0.04827309,135.69,135.66,19.52722682]
[1765180145217,0.04827309,135.69,135.67,17.06934218]
[1765180145522,0.04827309,135.69,135.68,3.29]
[1765180146222,6.6298,135.76,135.69,3.29]
[1765180146422,63.22,135.75,135.73,5.69867606]
[1765180147217,63.27563625,135.75,135.73,5.75021681]
[1765180147416,63.27563625,135.75,135.74,6.86461227]
[1765180147910,63.27563625,135.75,135.74,3.29]
[1765180147911,0.05563625,135.75,135.74,3.29]
[1765180148112,6.6288,135.78,135.74,3.29]
[1765180148314,6.6288,135.78,135.73,16.23955899]
[1765180148315,69.8488,135.78,135.77,6.85892652]
[1765180150322,63.22,135.78,135.77,6.85892652]
[1765180151622,65.62867606,135.78,135.76,6.91060528]
[1765180153030,72.25757606,135.78,135.76,6.91060528]
[1765180153232,103.1244,135.77,135.7,17.06934218]
[1765180153431,2.40867606,135.74,135.71,3.29]
[1765180153622,2.40867606,135.74,135.7,13.77934218]
[1765180153623,65.60867606,135.74,135.7,3.29]
[1765180154230,0.05247233,135.73,135.71,0.04854086]
[1765180159138,0.05247233,135.73,135.71,3.25854086]
[1765180163141,6.68357233,135.73,135.71,0.04854086]
[1765180163440,3.76121407,135.72,135.71,0.04854086]
[1765180164337,6.6326,135.7,135.66,16.98934218]
[1765180164538,63.2,135.69,135.66,16.98934218]
[1765180165131,63.2,135.69,135.66,3.21]
[1765180165329,63.24945273,135.69,135.66,3.2628983]
[1765180167550,69.88265273,135.69,135.66,3.2628983]
[1765180170343,6.6338,135.67,135.66,0.0528983]
[1765180171531,6.6351,135.65,135.62,3.21]
[1765180171739,73.61631407,135.65,135.62,3.21]
[1765180172330,66.98121407,135.65,135.6,13.77934218]
[1765180172534,66.98121407,135.65,135.55,69.8595]
[1765180172535,0.04883865,135.64,135.59,3.21]
[1765180172737,3.76121407,135.63,135.59,3.21]
[1765180172948,63.22,135.62,135.59,3.21]
[1765180173446,63.22,135.62,135.6,12.3593864]
[1765180174238,63.22,135.62,135.6,9.1493864]
[1765180174444,69.8563,135.62,135.59,9.1493864]
[1765180174642,69.8563,135.62,135.59,12.3593864]
[1765180175143,69.8563,135.62,135.59,3.21]
[1765180175338,69.8563,135.62,135.58,12.3593864]
[1765180176143,69.8563,135.62,135.58,3.21]
[1765180176348,63.22,135.62,135.58,3.21]
[1765180178349,6.68443865,135.64,135.58,3.21]
[1765180178537,63.24,135.63,135.58,3.21]
[1765180179142,6.68443865,135.64,135.58,3.21]
[1765180179349,63.24,135.62,135.58,3.21]
[1765180180645,6.68443865,135.64,135.58,3.21]
[1765180180848,63.24,135.63,135.58,3.21]
[1765180181053,63.24,135.63,135.59,3.21]
[1765180182842,6.68443865,135.64,135.59,6.97121407]
[1765180182843,0.04883865,135.64,135.59,6.97121407]
[1765180183045,0.04883865,135.64,135.6,12.3593864]
[1765180183247,0.04883865,135.64,135.61,3.21]
[1765180184653,0.04883865,135.64,135.61,12.3593864]
[1765180184844,0.04883865,135.64,135.62,3.21]
[1765180193360,0.04883865,135.64,135.63,3.19]
[1765180195857,103.1674,135.71,135.64,3.19]
[1765180195858,63.24,135.7,135.64,3.19]
[1765180196748,63.24,135.7,135.66,0.04883865]
[1765180196951,0.05442925,135.68,135.66,3.23883865]
[1765180197456,103.1288,135.76,135.67,3.19]
[1765180197657,63.24,135.74,135.68,3.19]
[1765180198450,0.05332082,135.72,135.7,3.24356666]
[1765180198655,0.05332082,135.72,135.7,0.05356666]
[1765180199752,0.05332082,135.72,135.7,3.24356666]
[1765180200661,0.05332082,135.72,135.71,3.19]
[1765180208257,3.76121407,135.77,135.72,3.08]
[1765180208455,66.96121407,135.79,135.73,3.08]
[1765180209254,0.05137021,135.77,135.75,3.13174361]
[1765180210954,0.05137021,135.77,135.75,0.05174361]
[1765180211764,6.68047021,135.77,135.75,0.05174361]
[1765180213567,10.44168428,135.77,135.75,0.05174361]
[1765180216366,6.6305,135.74,135.71,6.83492656]
[1765180216670,66.94121407,135.74,135.7,9.91492656]
[1765180216869,66.94121407,135.74,135.7,3.08]
[1765180217267,0.05480113,135.73,135.71,0.04811123]
[1765180217469,0.05480113,135.73,135.71,3.12811123]
[1765180219358,6.68600113,135.73,135.71,3.12811123]
[1765180222674,9.09338635,135.73,135.71,3.12811123]
[1765180226181,9.09338635,135.73,135.71,9.96303779]
[1765180226879,0.05480113,135.73,135.71,9.96303779]
[1765180229482,9.03878522,135.72,135.71,6.88303779]
[1765180229781,9.03878522,135.72,135.71,0.04811123]
[1765180236693,6.6324,135.7,135.69,6.83492656]
[1765180236892,72.21978522,135.7,135.69,6.83492656]
[1765180237588,69.8124,135.7,135.68,6.73238557]
[1765180237785,69.8124,135.7,135.65,13.77934218]
[1765180237786,6.6333,135.68,135.65,9.12929245]
[1765180237989,2.40738522,135.66,135.65,3.08]
[1765180239690,65.58738522,135.66,135.65,3.08]
[1765180240396,65.58738522,135.66,135.64,12.20929245]
[1765180240784,65.58738522,135.66,135.64,3.08]
[1765180242795,65.58738522,135.66,135.63,12.20929245]
[1765180242796,72.22198522,135.66,135.63,12.20929245]
[1765180242994,72.22198522,135.66,135.64,3.08]
[1765180248899,72.22198522,135.66,135.62,9.12929245]
[1765180249104,72.22198522,135.66,135.63,3.15]
[1765180249501,2.40738522,135.64,135.62,9.12929245]
[1765180249700,63.2,135.63,135.6,12.27929245]
[1765180249907,63.2,135.63,135.61,3.15]
[1765180249908,63.24647638,135.63,135.61,3.15]
[1765180253104,65.6538616,135.63,135.61,3.15]
[1765180258124,65.6538616,135.63,135.6,3.07]
[1765180260821,72.2898616,135.63,135.6,3.07]
[1765180261019,0.04647638,135.63,135.6,9.12929245]
[1765180261210,0.04647638,135.63,135.62,3.07]
[1765180262618,0.04647638,135.63,135.62,5.47738522]
[1765180263125,63.2,135.69,135.63,3.07]
[1765180263323,63.2,135.69,135.68,5.47738522]
[1765180266733,0.0465646,135.7,135.69,3.07]
[1765180266932,0.0465646,135.7,135.69,12.19383777]
[1765180267731,63.2,135.73,135.7,3.07]
[1765180267931,63.2,135.73,135.71,5.47738522]
[1765180268330,63.2,135.74,135.71,5.47738522]
[1765180268530,69.8306,135.74,135.71,5.47738522]
[1765180268730,69.8783731,135.74,135.71,5.53222938]
[1765180269135,6.6783731,135.74,135.71,5.53222938]
[1765180269328,69.8783731,135.74,135.71,5.53222938]
[1765180269935,6.6313,135.73,135.71,0.05484416]
[1765180275332,6.6316,135.72,135.68,12.19383777]
[1765180275634,2.40738522,135.7,135.67,3.07]
[1765180276335,2.45730001,135.7,135.67,0.03871725]
[1765180276532,9.08980001,135.7,135.67,0.03871725]
[1765180284650,6.68241479,135.7,135.67,0.03871725]
[1765180287641,6.68241479,135.7,135.67,3.10871725]
[1765180294552,6.6325,135.7,135.67,3.10871725]
[1765180294752,3.08,135.89,135.77,22.12]
[1765180294955,3.08,135.94,135.88,3.76335386]
[1765180295351,3.08,135.94,135.9,3.76335386]
[1765180295650,3.08,135.94,135.88,3.76335386]
[1765180295842,3.08,135.92,135.91,0.05649063]
[1765180296049,3.08,135.92,135.9,0.05333216]
[1765180296757,3.08,135.91,135.9,0.05333216]
[1765180303748,3.08,135.9,135.82,3.76335386]
[1765180304059,3.08,135.88,135.82,3.76335386]
[1765180304254,3.08,135.86,135.81,6.7712232]
[1765180304861,0.04642215,135.85,135.82,0.03529988]
[1765180305066,0.04642215,135.85,135.82,6.80652308]
[1765180305361,0.04642215,135.85,135.82,0.03529988]
[1765180307963,0.04642215,135.85,135.82,3.79865374]
[1765180308555,0.04642215,135.85,135.82,0.03529988]
[1765180310158,0.04642215,135.85,135.82,6.80652308]
[1765180310361,0.04642215,135.85,135.82,0.03529988]
[1765180311868,3.34642215,135.85,135.82,0.03529988]
[1765180323479,0.04642215,135.85,135.83,3.76335386]
[1765180323777,0.04642215,135.85,135.83,10.53457706]
[1765180324577,0.04642215,135.85,135.83,17.16037706]
[1765180327286,0.04642215,135.85,135.84,6.7712232]
[1765180329381,0.04642215,135.85,135.83,19.49545677]
[1765180330883,3.36642215,135.85,135.83,9.10630291]
[1765180331182,3.36642215,135.85,135.83,6.7351636]
[1765180331374,3.36642215,135.85,135.84,6.7351636]
[1765180331572,3.36642215,135.85,135.83,6.7351636]
[1765180331784,3.32,135.84,135.82,0.03529988]
[1765180332587,3.32,135.83,135.79,6.7351636]
[1765180332779,3.32,135.83,135.8,6.7351636]
[1765180333779,3.37432256,135.83,135.8,6.7351636]
[1765180334383,3.37432256,135.83,135.81,6.7351636]
[1765180335378,3.37432256,135.83,135.82,6.7351636]
[1765180336083,3.37432256,135.83,135.81,6.7813297]
[1765180336675,3.37432256,135.83,135.8,9.10630291]
[1765180337576,3.37432256,135.83,135.81,9.10630291]
[1765180338375,3.37432256,135.83,135.82,9.10630291]
[1765180339379,3.37432256,135.83,135.82,13.65945437]
[1765180340180,3.37432256,135.83,135.81,13.65945437]
[1765180344287,3.04,135.81,135.8,6.91945437]
[1765180344582,3.04,135.81,135.8,9.12089188]
[1765180344782,5.44517305,135.81,135.8,9.12089188]
[1765180345183,3.04,135.8,135.79,9.12089188]
[1765180345384,5.44517305,135.8,135.79,9.12089188]
[1765180346375,68.64517305,135.8,135.79,9.12089188]
[1765180346785,66.24,135.8,135.79,9.12089188]
[1765180347483,63.2,135.8,135.78,2.40517305]
[1765180347682,3.09215005,135.81,135.78,2.40517305]
[1765180347883,66.29215005,135.81,135.8,9.11519702]
[1765180349087,66.29215005,135.81,135.79,9.11519702]
[1765180349891,3.04,135.8,135.79,9.11519702]
[1765180350887,0.05215005,135.81,135.78,2.40517305]
[1765180351093,0.05215005,135.81,135.8,11.51670257]
[1765180353490,0.05215005,135.81,135.8,2.40517305]
[1765180355499,0.05215005,135.81,135.8,9.10378311]
[1765180361202,0.05215005,135.81,135.77,6.6287]
[1765180361406,0.05215005,135.81,135.79,2.40517305]
[1765180363405,0.05215005,135.81,135.77,6.6287]
[1765180363704,0.05215005,135.81,135.78,2.40517305]
[1765180364403,3.09215005,135.81,135.8,9.10710772]
[1765180368511,0.05215005,135.81,135.8,9.10710772]
[1765180371017,3.26215005,135.81,135.8,9.10710772]
[1765180373118,3.26215005,135.81,135.79,13.65961024]
[1765180373612,0.05215005,135.81,135.79,13.65961024]
[1765180374218,0.05215005,135.81,135.8,13.65961024]
[1765180376120,0.05215005,135.81,135.77,27.24657888]
[1765180376322,0.05215005,135.81,135.8,13.71830215]
[1765180377120,0.05215005,135.81,135.77,27.24657888]
[1765180378022,0.05215005,135.81,135.8,13.72087953]
[1765180380323,3.41215005,135.81,135.8,13.72087953]
[1765180383025,3.36,135.8,135.79,9.16080606]
[1765180383226,5.76517305,135.8,135.79,9.16080606]
[1765180391429,3.36,135.79,135.78,9.16080606]
[1765180394527,3.36,135.79,135.77,9.16080606]
[1765180394838,105.50267305,135.8,135.75,9.16080606]
[1765180394839,5.76517305,135.77,135.75,9.16080606]
[1765180395039,63.14,135.76,135.75,9.16080606]
[1765180395434,5.76517305,135.82,135.75,2.40517305]
[1765180395636,66.5,135.81,135.78,9.14487084]
[1765180396143,66.5,135.81,135.8,6.85751209]
[1765180398054,63.14,135.81,135.79,11.5993585]
[1765180398647,0.05150256,135.82,135.79,11.5993585]
[1765180398846,63.14,135.81,135.8,9.14487084]
[1765180400950,0.05150256,135.82,135.79,16.17179392]
[1765180401254,63.19150256,135.82,135.81,9.13747372]
[1765180404058,66.33150256,135.82,135.81,9.13747372]
[1765180406150,0.05150256,135.82,135.81,9.13747372]
[1765180406350,63.19150256,135.82,135.81,9.13747372]
[1765180409160,63.19150256,135.82,135.8,13.71730626]
[1765180410154,3.14,135.81,135.8,13.71730626]
[1765180410350,66.33150256,135.82,135.8,13.71730626]
[1765180413760,63.19150256,135.82,135.8,13.71730626]
[1765180414857,0.05150256,135.82,135.8,13.71730626]
[1765180416156,0.05150256,135.82,135.81,13.71730626]
[1765180417665,0.05150256,135.82,135.8,13.71730626]
[1765180432071,0.05150256,135.82,135.8,3.75542739]
[1765180432770,9.7829,135.9,135.8,106.84712739]
[1765180432975,3.16,135.89,135.88,6.83944025]
[1765180433975,66.26,135.89,135.87,6.8957314]
[1765180434169,63.1,135.89,135.87,6.8957314]
[1765180434467,66.26,135.89,135.87,6.8957314]
[1765180434873,3.16,135.88,135.87,6.8957314]
[1765180435968,66.26,135.88,135.87,6.8957314]
[1765180442378,0.05602323,135.9,135.87,9.17554482]
[1765180442379,3.08602323,135.9,135.87,9.17554482]
[1765180442572,66.18602323,135.9,135.89,6.84065965]
[1765180444081,3.08602323,135.9,135.89,6.84065965]
[1765180444379,66.18602323,135.9,135.89,6.84065965]
[1765180444578,3.08602323,135.9,135.89,6.84065965]
[1765180444779,66.18602323,135.9,135.89,6.84065965]
[1765180444984,66.16602323,135.9,135.89,6.84065965]
[1765180449290,3.03,135.89,135.88,6.84065965]
[1765180449988,3.03,135.89,135.87,9.17554482]
[1765180450183,3.03,135.89,135.88,6.82917936]
[1765180451285,63.13602323,135.9,135.88,6.82917936]
[1765180451592,0.05602323,135.9,135.88,9.11925367]
[1765180455095,0.05602323,135.9,135.87,0.05629115]
[1765180455096,0.05602323,135.9,135.89,9.11925367]
[1765180461207,3.41602323,135.9,135.88,9.11925367]
[1765180461503,0.05602323,135.9,135.88,9.11925367]
[1765180466100,3.36,135.95,135.89,3.75542739]
[1765180466304,3.36,135.95,135.93,6.8068423]
[1765180467007,3.41081624,135.95,135.93,6.85739615]
[1765180467905,0.05081624,135.95,135.93,6.85739615]
[1765180468505,3.41081624,135.95,135.93,6.85739615]
[1765180470201,0.05081624,135.95,135.93,6.85739615]
[1765180470406,0.05081624,135.95,135.94,6.8068423]
[1765180471509,3.41081624,135.95,135.94,6.8068423]
[1765180476206,5.81035902,135.95,135.94,6.8068423]
[1765180485912,0.05081624,135.95,135.94,6.8068423]
[1765180487015,3.41081624,135.95,135.94,6.8068423]
[1765180493226,3.41081624,135.95,135.93,9.12634358]
[1765180499114,3.41081624,135.95,135.94,9.07578973]
[1765180500825,3.41081624,135.95,135.93,9.12634358]
[1765180507327,3.41081624,135.95,135.94,9.07578973]
[1765180508925,3.13,135.94,135.93,9.12634358]
[1765180509229,6.67111624,135.95,135.93,9.12634358]
[1765180509230,0.05081624,135.95,135.93,9.12634358]
[1765180509435,63.0,135.94,135.93,9.12634358]
[1765180509637,63.0,135.94,135.93,0.05055385]
[1765180513433,0.05081624,135.95,135.93,13.72943436]
[1765180513636,63.0,135.94,135.93,13.72943436]
[1765180514231,66.13,135.94,135.93,0.05055385]
[1765180514428,66.13,135.94,135.93,9.18017709]
[1765180517235,66.13,135.94,135.93,0.05055385]
[1765180517432,3.13,135.92,135.89,13.67888051]
[1765180517641,3.13,135.89,135.86,15.96888051]
[1765180517844,63.0,135.88,135.86,15.96888051]
[1765180518240,63.0,135.88,135.86,2.29]
[1765180518441,63.04677977,135.88,135.86,2.34155487]
[1765180518839,66.25677977,135.88,135.86,2.34155487]
[1765180519346,68.65632255,135.88,135.86,2.34155487]
[1765180521041,3.21,135.87,135.86,0.05155487]
[1765180523050,3.21,135.87,135.86,6.88410626]
[1765180523247,3.21,135.87,135.86,0.05155487]
[1765180541063,106.2565,135.87,135.81,6.81083276]
[1765180541371,3.21,135.85,135.81,9.16083276]
[1765180541663,3.21,135.85,135.78,2.639e-05]
[1765180541664,3.21,135.8,135.78,2.639e-05]
[1765180541962,3.21,135.78,135.73,2.35]
[1765180542164,3.21,135.76,135.74,2.3993005]
[1765180542356,63.02,135.75,135.74,2.3993005]
[1765180542860,63.02,135.75,135.74,3.8793005]
[1765180543062,63.02,135.75,135.74,2.3993005]
[1765180543464,63.02,135.75,135.74,3.8793005]
[1765180544566,63.04,135.82,135.75,2.35]
[1765180544772,63.04,135.82,135.79,2.3]
[1765180545065,3.21,135.84,135.79,2.3]
[1765180545268,66.25,135.83,135.79,2.3]
[1765180545459,72.8762,135.83,135.79,2.3]
[1765180545663,0.05652414,135.82,135.8,2.34725659]
[1765180548466,3.19652414,135.82,135.8,2.34725659]
[1765180550070,0.05652414,135.82,135.8,2.34725659]
[1765180551262,63.09652414,135.82,135.8,2.34725659]
[1765180553270,0.05652414,135.82,135.8,2.34725659]
[1765180553467,0.05652414,135.82,135.81,2.3]
[1765180557974,103.03,135.89,135.81,2.3]
[1765180557975,3.14,135.88,135.81,2.3]
[1765180558178,3.14,135.84,135.81,2.3]
[1765180558471,3.14,135.84,135.8,2.31]
[1765180558978,3.33,135.82,135.81,0.05066384]
[1765180583493,66.37,135.82,135.81,9.10951532]
[1765180583694,66.37,135.82,135.81,0.05066384]
[1765180584288,66.37,135.82,135.81,9.10951532]
[1765180589293,66.37,135.82,135.81,0.05066384]
[1765180594307,0.0473178,135.83,135.81,16.03954435]
[1765180594486,3.3,135.82,135.81,16.03954435]
[1765180595498,3.3,135.82,135.81,13.72954435]
[1765180598401,3.3,135.82,135.81,0.05066384]
[1765180598402,5.70383944,135.82,135.81,0.05066384]
[1765180599793,5.70383944,135.82,135.81,9.1933093]
[1765180601507,5.70383944,135.82,135.81,0.05066384]
[1765180603806,5.70383944,135.82,135.81,9.19834045]
[1765180615922,3.3,135.82,135.81,9.19834045]
[1765180616123,5.70383944,135.82,135.81,9.19834045]
[1765180617324,3.3,135.82,135.81,11.50834045]
[1765180617932,66.32,135.82,135.81,9.19834045]
[1765180618633,3.3,135.82,135.81,11.50834045]
[1765180618835,66.32,135.82,135.81,11.50834045]
[1765180619032,66.32,135.82,135.81,2.36066384]
[1765180620433,66.32,135.82,135.81,0.05066384]
[1765180620629,68.72383944,135.82,135.81,0.05066384]
[1765180620936,68.72383944,135.82,135.81,9.19445745]
[1765180621323,5.70383944,135.82,135.81,9.19445745]
[1765180621636,68.72383944,135.82,135.81,9.19445745]
[1765180624243,6.6734178,135.83,135.81,9.19445745]
[1765180624244,6.6734178,135.83,135.81,11.50445745]
[1765180624540,9.7634178,135.83,135.82,9.14347967]
[1765180624843,72.7834178,135.83,135.82,9.14347967]
[1765180626432,63.0673178,135.83,135.82,11.45347967]
[1765180626737,66.1573178,135.83,135.82,9.14347967]
[1765180627043,3.09,135.82,135.81,9.19414351]
[1765180627452,9.7165,135.82,135.81,9.19414351]
[1765180627743,9.7165,135.82,135.81,4.422e-05]
[1765180628345,9.7175,135.8,135.79,9.14347967]
[1765180628647,72.7375,135.8,135.79,9.14347967]
[1765180629240,3.09,135.79,135.78,9.19830802]
[1765180636547,3.09,135.79,135.78,0.05482835]
[1765180643158,5.49383944,135.79,135.78,0.05482835]
[1765180645251,3.19,135.77,135.76,8.87146705]
[1765180645449,3.19,135.76,135.72,16.04888051]
[1765180646251,3.24109894,135.75,135.73,0.05276059]
[1765180646562,63.02,135.74,135.73,0.05276059]
[1765180647955,66.21,135.74,135.73,0.05276059]
[1765180650559,63.02,135.74,135.73,2.42276059]
[1765180651353,66.21,135.74,135.73,0.05276059]
[1765180653249,63.02,135.74,135.73,0.05276059]
[1765180653555,63.02,135.74,135.73,2.42276059]
[1765180655164,66.21,135.74,135.73,0.05276059]
[1765180661254,66.21,135.74,135.73,0.00276059]
[1765180662362,69.97138176,135.74,135.73,0.00276059]
[1765180663165,3.19,135.74,135.73,0.00276059]
[1765180663468,66.21,135.74,135.73,0.00276059]
[1765180670271,0.05109894,135.75,135.73,2.42276059]
[1765180670468,63.07109894,135.75,135.73,2.42276059]
[1765180671369,3.25,135.74,135.73,0.00276059]
[1765180680578,3.76138176,135.74,135.73,0.00276059]
[1765180682078,103.1512,135.73,135.68,9.11512843]
[1765180682275,66.78138176,135.72,135.68,9.11512843]
[1765180682485,66.78138176,135.72,135.67,11.53512843]
[1765180682687,3.33,135.71,135.67,11.53512843]
[1765180683279,3.33,135.69,135.67,11.53512843]
[1765180683479,63.02,135.68,135.67,11.53512843]
[1765180684886,66.35,135.68,135.67,9.11512843]
[1765180685296,63.02,135.68,135.67,11.53512843]
[1765180686891,66.35,135.68,135.67,9.11512843]
[1765180687096,66.35,135.68,135.66,9.11512843]
[1765180687588,3.33,135.67,135.66,9.11512843]
[1765180690196,3.33,135.67,135.65,11.53512843]
[1765180690391,3.37662962,135.67,135.65,11.53512843]
[1765180690701,3.37662962,135.67,135.66,6.81447074]
[1765180692286,3.37662962,135.67,135.65,9.23447074]
[1765180692491,3.37662962,135.67,135.66,6.81447074]
[1765180693297,3.37662962,135.67,135.65,9.23447074]
[1765180695610,3.37662962,135.67,135.66,2.42]
[1765180697705,3.37662962,135.67,135.65,9.23447074]
[1765180700100,3.37662962,135.67,135.66,2.42]
[1765180703303,0.04662962,135.67,135.66,2.42]
[1765180703501,0.04662962,135.67,135.66,9.23447074]
[1765180704303,3.23,135.7,135.67,2.42]
[1765180704503,63.04,135.69,135.68,2.42]
[1765180704904,63.04,135.7,135.68,2.42]
[1765180705100,63.04,135.7,135.69,2.42]
[1765180710301,66.27,135.7,135.68,2.46662962]
[1765180712213,63.04,135.7,135.68,2.46662962]
[1765180712411,63.04,135.7,135.69,2.42]
[1765180712717,66.27,135.7,135.69,2.42]
[1765180712916,66.27,135.7,135.69,9.23447074]
[1765180714717,66.27,135.7,135.69,6.81447074]
[1765180716019,3.23,135.7,135.69,6.81447074]
[1765180718221,3.23,135.7,135.68,13.98930977]
[1765180718916,3.23,135.7,135.69,6.79714944]
[1765180719225,3.23,135.7,135.68,13.98930977]
[1765180720321,3.23,135.7,135.69,6.79993507]
[1765180720819,3.23,135.69,135.68,6.84656469]
[1765180723623,3.23,135.69,135.68,0.04662962]
[1765180726525,63.06915567,135.71,135.68,4.87418134]
[1765180726728,63.06915567,135.71,135.7,6.8119716]
[1765180726926,66.29915567,135.71,135.7,6.8119716]
[1765180727430,0.04915567,135.71,135.7,4.82755172]
[1765180727625,0.04915567,135.71,135.7,13.91018053]
[1765180728022,0.04915567,135.71,135.7,4.82755172]
[1765180730233,0.04915567,135.71,135.7,13.89854121]
[1765180733928,63.0,135.73,135.71,2.42]
[1765180734136,63.0,135.73,135.72,2.42]
[1765180734327,66.32,135.73,135.72,2.42]
[1765180734733,66.32,135.73,135.71,11.48299283]
[1765180734929,66.3691869,135.73,135.71,11.53358136]
[1765180737440,66.3691869,135.73,135.72,6.79326127]
[1765180740636,3.17,135.76,135.73,2.41]
[1765180740842,3.17,135.78,135.75,2.41]
[1765180741042,3.17,135.78,135.75,9.19760801]
[1765180741643,3.22047672,135.78,135.75,9.25088414]
[1765180742434,3.22047672,135.78,135.75,6.84088414]
[1765180743342,3.22047672,135.78,135.75,9.25088414]
[1765180744446,3.22047672,135.78,135.75,6.84088414]
[1765180744641,3.22047672,135.78,135.75,9.25088414]
[1765180746843,0.05047672,135.78,135.76,2.41]
[1765180747044,3.22047672,135.78,135.76,2.41]
[1765180748948,3.22047672,135.78,135.75,6.84088414]
[1765180749259,3.22047672,135.78,135.75,9.25088414]
[1765180749958,3.22047672,135.78,135.76,2.41]
[1765180751455,0.05047672,135.78,135.76,11.60515973]
[1765180751655,0.05047672,135.78,135.77,2.41]
[1765180753455,3.22047672,135.78,135.76,6.78760801]
[1765180753662,3.22047672,135.78,135.76,9.19760801]
[1765180756757,3.22047672,135.78,135.77,2.41]
[1765180756958,0.05047672,135.78,135.77,2.41]
[1765180758057,0.05047672,135.78,135.77,9.19760801]
[1765180769375,0.05047672,135.78,135.76,6.78760801]
[1765180769376,3.18047672,135.78,135.76,6.78760801]
[1765180769572,2.40755172,135.76,135.75,9.25088414]
[1765180770072,5.53755172,135.76,135.75,9.25088414]
[1765180770267,5.53755172,135.76,135.75,6.84088414]
[1765180770866,5.53755172,135.76,135.75,9.25088414]
[1765180772174,5.53755172,135.76,135.75,6.84088414]
[1765180772473,5.53755172,135.76,135.75,0.05327613]
[1765180774370,5.53755172,135.76,135.75,6.84088414]